{"text_format":"1","workbook":"xlsx","n_sheets":13,"sheets":["Instructivo","IDENTIFICACION","Logica IP","CopiaReco","LISTA DE VERIFICACION","CopiaLV","Grafico 2","Recomendaciones","datos","NO Aplica","Grafico","Hoja1","Doc_51"],"not_rendered":{"charts":0,"images":2,"macros":1,"external_links":0,"defined_names":1,"comments":1,"pivot_tables":0},"unopened":[],"bounds":{"document_bytes":16777216,"sheet_cells":100000,"rows_first":2000,"rows_last":500,"rows_between":2000,"halvings":0,"cell_chars":16384,"cell_head_chars":4096},"cells_cut":0,"cells_raw":0,"read":"whole","date_system":"1900"}

{"sheet":"Instructivo","index":0,"n_rows":14,"n_cols":1,"rows_kept":14,"cut":false,"hidden":true,"merged":[]}
["INSTRUCTIVO PARA EL LLENADO DEL FORMULARIO DE IDENTIFICACIÓN DE PELIGRO"]
[]
["1. Previo a comenzar a introducir datos en el formulario, presionar botón LIMPIAR DATOS."]
["2. Luego de ingresar el BP EMPRESA, el ingreso de los demás datos solo deberá realizarse en las celdas de color anaranjado. No podrá utilizarse el símbolo “&”, debiendo ser reemplazado por la letra “Y” o la palabra “And”."]
["3. El número del Informe Técnico se generará por defecto al ingresar el ID del documento, y corresponderá al número de actividad SAP de este."]
["4.  El ingreso de los rut deberá realizarse sin puntos intermedios."]
["5.  Para el ingreso de la dirección de la Empresa o del Centro de Trabajo, se han considerado los campos “NOMBRE CALLE DIRECCIÓN” y “NÚMERO DIRECCIÓN”, cualquier información complementaria, como por ejemplo: Depto., Oficina u otra similar, deberá ser ingresada en hoja “Doc_51”, celdas T2 o AS2, según sea el caso."]
["6. Cuando el resultado de las celdas “REGLAMENTO DE H&S” y “REGLAMENTO DE RIOH&S” sea “No” o “No corresponde”, no será necesario completar los campos “REGLAMENTO DE H&S incluye Sílice” y “REGLAMENTO DE RIOH&S incluye Sílice”."]
["7. Si el resultado del campo “ESTATUS CENTRO TRABAJO” corresponde a “Caduca”, en la celda ubicada al costado derecho de ésta se deberá seleccionar el motivo. Si el motivo seleccionado es “Otros” en hoja “Doc_51”, celda BL2, se deberá indicar a que corresponde."]
["8. Los campos “X (LATITUD)” e “Y (LONGITUD)” deberán ser expresados con 7 decimales."]
["9. Si el resultado del campo “CT FECHA CONOCIDA DE CIERRE” es No, entonces el campo “FECHA TERMINO CT” no deberá ser llenado."]
["10. En pie de firma, insertar firma digital de quién realizó el informe e indicar su cargo y la agencia a la cual pertenece."]
["11. Una vez ingresados todos los datos en la hoja de IDENTIFICACION, presionar botón “GENERAR EXCEL PARA EVAST” y guardar el archivo según la siguiente descripción: ID + N° de actividad SAP + Nombre Empresa. El archivo deberá ser anexado en actividad SAP correspondiente."]
["12. Luego, presionar botón “GENERAR INFORME PDF” para obtener el informe en formato pdf. Anexar el documento en actividad SAP correspondiente."]

{"sheet":"IDENTIFICACION","index":1,"n_rows":81,"n_cols":32,"rows_kept":81,"cut":false,"hidden":true,"merged":[[46,17,46,18],[48,17,48,18],[53,1,53,2],[53,9,53,10],[41,11,41,14],[41,15,41,17],[57,1,57,2],[55,1,55,2],[54,13,54,14],[55,13,55,14],[44,2,45,20],[44,1,45,1],[51,2,52,20],[51,1,52,1],[47,3,47,5],[48,3,48,5],[46,8,46,10],[47,8,47,9],[47,16,47,17],[47,18,47,20],[41,1,41,3],[48,13,48,14],[41,18,41,20],[43,1,43,20],[6,22,12,24],[10,15,10,20],[11,15,11,20],[14,1,14,4],[15,1,15,4],[16,1,16,4],[14,5,14,10],[15,5,15,10],[16,5,16,10],[14,15,14,20],[10,11,10,14],[11,11,11,14],[10,5,10,10],[11,5,11,10],[10,1,10,4],[11,1,11,4],[13,22,19,24],[19,11,19,14],[19,15,19,20],[16,11,16,14],[13,1,13,20],[15,15,15,20],[1,4,1,11],[1,12,1,17],[9,17,9,20],[9,1,9,16],[3,4,3,14],[3,15,3,17],[2,4,2,19],[19,5,19,10],[16,15,16,20],[14,11,14,14],[15,11,15,14],[7,1,7,4],[8,1,8,4],[7,5,7,10],[8,5,8,10],[7,12,7,14],[7,15,7,20],[21,15,21,20],[19,1,19,4],[20,1,20,4],[20,5,20,10],[18,1,18,20],[28,1,28,20],[29,1,29,4],[29,5,29,13],[25,4,25,7],[24,8,24,10],[25,8,25,10],[21,1,21,4],[21,5,21,10],[23,1,23,3],[23,18,23,20],[23,15,23,17],[21,11,21,14],[20,11,20,12],[20,13,20,14],[20,15,20,16],[20,17,20,20],[23,4,23,5],[23,6,23,7],[23,8,23,14],[36,1,36,4],[36,5,36,10],[36,11,36,14],[36,15,36,20],[32,1,32,4],[29,14,29,17],[29,18,29,20],[31,14,31,17],[31,5,31,13],[34,5,34,13],[35,14,35,17],[35,18,35,20],[31,1,31,4],[32,18,32,20],[34,1,34,4],[32,7,32,8],[32,12,32,13],[32,9,32,11],[34,14,34,17],[34,18,34,20],[32,14,32,17],[38,1,38,4],[38,5,38,20],[40,1,40,3],[40,4,40,7],[39,1,39,3],[39,4,39,7],[39,8,39,10],[39,11,39,14],[39,15,39,17],[40,8,40,10],[40,15,40,17],[39,18,39,20],[40,11,40,14],[40,18,40,20],[79,8,79,13],[61,2,62,15],[56,9,56,10],[61,1,62,1],[56,19,56,20],[56,17,56,18],[78,3,78,18],[77,3,77,18],[56,13,56,14],[56,1,56,2],[56,5,56,6],[58,2,59,15],[65,1,70,20],[58,16,59,16],[58,18,59,18],[61,16,62,16],[61,18,62,18],[58,1,59,1],[74,1,75,20],[64,1,64,20],[24,11,24,14],[25,11,25,14],[24,18,24,20],[25,1,25,3],[25,15,25,17],[24,1,24,3],[24,15,24,17],[25,18,25,20],[24,4,24,7],[55,9,55,11],[55,15,55,18],[72,1,72,20],[54,17,54,18],[49,1,49,2],[54,1,54,2],[53,4,53,5],[54,4,54,5],[55,4,55,5],[49,13,49,14],[54,9,54,11],[49,9,49,10],[26,15,26,17],[26,18,26,20],[35,1,35,2],[35,3,35,5],[35,6,35,8],[35,9,35,13],[48,8,48,10],[53,13,53,14],[53,17,53,18],[49,5,49,6],[53,15,53,16],[46,1,46,2],[47,1,47,2],[48,1,48,2],[46,13,46,14],[41,4,41,7],[41,8,41,10],[47,13,47,14],[26,1,26,3],[26,4,26,7],[26,8,26,10],[26,11,26,14],[32,5,32,6],[46,3,46,5]]}
[]
[null,null,null,null,"INFORME TÉCNICO Nº",null,null,null,null,null,null,null,{"$f":"+$F$11","v":11978007}]
[null,null,null,null,"   IDENTIFICACIÓN DE PELIGRO DE EXPOSICIÓN  A PLAGUICIDAS"]
[]
[]
[]
[]
[null,"NOMBRE REP. LEGAL",null,null,null,"PIERRE",null,null,null,null,null,null,"BP EMPRESA",null,null,2000326859]
[null,"APELLIDOS REP. LEGAL",null,null,null,"LENNE"]
[]
[null,"ID del DOCUMENTO",null,null,null,11978007,null,null,null,null,null,"FECHA DE DETECCIÓN PELIGRO",null,null,null,"2020-12-04"]
[]
[]
[null,"IDENTIFICACIÓN RESPONSABLE ACHS"]
[null,"NOMBRES  RESPONSABLE",null,null,null,"VERÓNICA",null,null,null,null,null,"RUT RESPONSABLE",null,null,null,"14223038-0"]
[null,"APELLIDO PATERNO",null,null,null,"MELLADO",null,null,null,null,null,"CORREO PROFESIONAL",null,null,null,"VMELLADO@ACHS"]
[null,"APELLIDO MATERNO",null,null,null,"FUENTES",null,null,null,null,null,"ID  EXPERTO ACHS",null,null,null,1003029642]
[]
[null,"IDENTIFICACIÓN DE LA EMPRESA (CASA MATRIZ)"]
[null,"RAZÓN SOCIAL",null,null,null,"FUNDACION GUSTAVO MONDION MARY",null,null,null,null,null,"RUT EMPLEADOR",null,null,null,"65080250-0",null,null,null,null,null,null,null,null,null,null,null,null,"",null,null,""]
[null,"NOMBRE CALLE DIRECCIÓN",null,null,null,"FUNDO SANTA TERESA",null,null,null,null,null,"N° DIRECCIÓN",null,"KM 27",null,"TIPO CALLE",null,"Avenida",null,null,null,null,null,null,null,null,null,null,""]
[null,"RESTO DIRECCIÓN",null,null,null,"Avenida",null,null,null,null,null,"COMUNA",null,null,null,"VICTORIA",null,null,null,null,null,null,null,null,null,null,null,null,{"$f":"+IFERROR(VLOOKUP(P7,#REF!,10,FALSE),\"\")","v":""}]
[]
[null,"CÓDIGO CIIU",null,null,12111,null,"CIIU TEXTO",null,"CRÍA DE GANADO BOVINO PARA LA PRODUCCIÓN LECHERA",null,null,null,null,null,null,"TIPO ORGANIZACIÓN",null,null,"Privada",null,null,null,null,"3=Independiente",null,null,null,null,{"$f":"+IFERROR(VLOOKUP(P7,#REF!,11,FALSE),\"\")","v":""},null,null,{"$f":"+IFERROR(VLOOKUP(P7,#REF!,12,FALSE),\"\")","v":""}]
[null,"N° TRABJ HOMBRES",null,null,14,null,null,null,"N° TRABJ MUJERES",null,null,4,null,null,null,"TOTAL TRABAJADORES",null,null,18,null,null,null,null,null,null,null,null,null,{"$f":"+IFERROR(VLOOKUP(P7,#REF!,15,FALSE),\"\")","v":""},{"$f":"+IFERROR(VLOOKUP(P7,#REF!,16,FALSE),\"\")","v":""},null,{"$f":"+IFERROR(VLOOKUP(P7,#REF!,14,FALSE),\"\")","v":""}]
[null,"REGLAMENTO DE H&S ",null,null,"No Corresponde",null,null,null,"REGLAMENTO DE RIOH&S",null,null,"Si",null,null,null,"DEPTO. PREVENCION",null,null,"No Corresponde"]
[null,"REGLAMENTO DE H&S incluye Plaguicidas",null,null,null,null,null,null,"REGLAMENTO DE RIOH&S incluye Plaguicidas",null,null,"Si",null,null,null,"SISTEMA GESTION INCLUYE PLAGUICIDAS",null,null,"No"]
[]
[null,"IDENTIFICACIÓN DEL CENTRO DE TRABAJO (SUCURSAL)"]
[null,"NOMBRE EMPLEADOR PRINCIPAL",null,null,null,"FUNDACION GUSTAVO MONDION MARY",null,null,null,null,null,null,null,null,"RUT EMPLEADOR PRINCIPAL",null,null,null,"65080250-0"]
[]
[null,"NOMBRE CENTRO DE TRABAJO",null,null,null,"FUNDO SANTA TERESA",null,null,null,null,null,null,null,null,"TIPO EMPRESA",null,null,null,"Principal"]
[null,"ESTATUS CENTRO TRABAJO",null,null,null,"Activo",null,null,null,"N° PROYECTO/CONTRATO",null,null,null,null,"BP CENTRO DE TRABAJO (SUC)",null,null,null,2000326859,null,null,null,null,"1=Vigente",null,null,null,null,{"$f":"+IF(P7=\"\",\"\",P7)","v":""}]
[]
[null,"NOMBRE CALLE DIRECCIÓN",null,null,null,"FUNDO SANTA TERESA",null,null,null,null,null,null,null,null,"NUMERO DIRECCIÓN",null,null,null,"KM 27",null,null,null,null,"1= Activa",null,null,null,null,{"$f":"+IFERROR(VLOOKUP(P7,#REF!,27,FALSE),\"\")","v":""}]
[null,"COMUNA",null,"ALTO DEL CARMEN",null,null,"RESTO DIRECCIÓN",null,null,null,null,null,null,null,"TIPO CALLE",null,null,null,"Avenida",null,null,null,null,"2=Caduca",null,null,null,null,{"$f":"+IFERROR(VLOOKUP(P7,#REF!,31,FALSE),\"\")","v":""}]
[null,"X (LATITUD)",null,null,null,-38.294569699999997,null,null,null,null,null,"Y (LONGITUD)",null,null,null,-73.105003400000001,null,null,null,null,null,null,null,"3=Paralizada",null,null,null,null,{"$f":"+IFERROR(VLOOKUP(P7,#REF!,24,FALSE),\"\")","v":""},null,null,{"$f":"+IFERROR(VLOOKUP(P7,#REF!,25,FALSE),\"\")","v":""}]
[]
[null,"DESCRIPCIÓN ACTIVIDAD CT",null,null,null,"CRÍA DE GANADO BOVINO PARA LA PRODUCCIÓN LECHERA",null,null,null,null,null,null,null,null,null,null,null,null,null,null,null,null,null,null,null,null,null,null,{"$f":"+IFERROR(VLOOKUP(P7,#REF!,32,FALSE),\"\")","v":""}]
[null,"N° TRABJ HOMBRES CT",null,null,14,null,null,null,"N° TRABJ MUJERES CT",null,null,4,null,null,null,"N° TOTAL TRABJ CT",null,null,18,null,null,null,null,null,null,null,null,null,{"$f":"+IF(E40=\"\",\"\",SUM(E40+L40))","v":18}]
[null,"CPHS CONSTITUIDO  ",null,null,"No Corresponde",null,null,null,"EXP. PREV. DE RIESGOS",null,null,"Si (propio o facilitado)",null,null,null,"HORAS SEMANA EXP. CT",null,null,8]
[null,"FECHA INICIO CT",null,null,null,null,null,null,"CT FECHA CONOCIDA DE CIERRE",null,null,"No",null,null,null,"FECHA TERMINO CT",null,null,null,null,null,null,null,null,null,null,null,null,{"$f":"+IFERROR(VLOOKUP(P7,#REF!,39,FALSE),\"\")","v":""}]
[]
[null,"ANTECEDENTES DE LA EXPOSICIÓN"]
[null,1,"En sus procesos o servicios que presta, utiliza o está en contacto con plaguicidas que esten en los grupos químicos que se indican a continuación:"]
[]
[null,null,null,"Cumarinicos",null,null,null,null,"Organofosforados",null,null,null,null,"Bromuro de Metilo"]
[null,null,null,"Carbamatos",null,null,null,null,"Piretroides",null,null,null,null," Otro (Indicar)",null,null,"Indicar AQUÍ \n                –––>"]
[null,null,null,"Plaguicida SO2",null,null,null,null,"Inorganicos (Cr, As)",null,null,null,null,"Ninguno"]
[]
[]
[null,2,"Los plaguicidas indicados se utilizan o están presentes en procesos como por ejemplo:"]
[]
[null,null,null,null,"Aplicación",null,null,null,null,"Dosificación",null,null,null,null,null,"Ninguno"]
[null,null,null,null,"Fabricación",null,null,null,null,"Carga o Mezcla"]
[null,null,null,null,"Baño de peces",null,null,null,null," Otro en que se abra la tapa del envase.",null,null,null,"Indicar AQUÍ \n–––>"]
[]
[]
[null,3," ¿Utiliza cámaras de fumigación?",null,null,null,null,null,null,null,null,null,null,null,null,null,"Si",null,"No"]
[]
[]
[null,4,"¿Si no utiliza plaguicidas, es necesario hacer examen de egreso a trabajadores?",null,null,null,null,null,null,null,null,null,null,null,null,null,"Si",null,"No"]
[]
[]
[null,"CONCLUSIÓN"]
[null,{"$f":"+IFERROR('Logica IP'!B26,\" \")","v":"En el centro de trabajo se utiliza Piretroides. Los trabajadores expuestos serán ingresados a Programas de Vigilancia Ambiental y de Salud, según corresponda.\n\n"}]
[]
[]
[null,null,null,null,null,null,null,null,null,null,null,null,null,null,null,null,null,null,null,null,null,null,4,{"$f":"+IF(+X33=+X35,+X68,+IF(+X33=+X36,\"Este centro de trabajo  actualmente no está vigente en ACHS.\",IF(+X33=+X37,\"En este centro de trabajo existe el agente sílice, pero no existe emisión de polvo, porque  la faena esta terminada,  y por lo tanto no hay exposición de los trabajadores.\",\" \")))","v":" "}]
[null,null,null,null,null,null,null,null,null,null,null,null,null,null,null,null,null,null,null,null,null,null,5,"El Trabajador Independiente realiza tareas con materiales que tienen sílice, en  procesos que generan polvo en suspensión, su tiempo de exposición es mayor al 30 % de la jornada semanal, lo cual será comunicado a Experto ACHS para que realice la evaluación cualitativa que corresponde según el Protocolo de Vigilancia del Ambiente de Trabajo y de la Salud de los Trabajadores con Exposición a Sílice. (Resolución Exenta  Nº 268 del 3 de Junio de 2015). Adjuntamos ficha resumen del protocolo para su conocimiento."]
[null,null,null,null,null,null,null,null,null,null,null,null,null,null,null,null,null,null,null,null,null,null,6,"El Trabajador Independiente realiza tareas con materiales que tienen sílice, en  procesos que generan polvo en suspensión, su tiempo de exposición es menor al 30 % de la jornada semanal, lo cual será comunicado a Experto ACHS para que realice la evaluación cualitativa que corresponde según el Protocolo de Vigilancia del Ambiente de Trabajo y de la Salud de los Trabajadores con Exposición a Sílice. (Resolución Exenta  Nº 268 del 3 de Junio de 2015). Adjuntamos ficha resumen del protocolo para su conocimiento."]
[]
[]
[]
[null,{"$f":"+IF(Z59=1, \"IMPORTANTE: En el centro de trabajo existen cámaras de fumigación dado lo cual, además de los programas de vigilancia que corresponda aplicar, es necesario que al inicio de cada temporada se informe a la SEREMI de Salud.\",+IF(Z62=1,\" Se debe coordinar con ACHS examen de egreso de los trabajadores que estuvieron expuestos a plaguicidas.\",\" \"))","v":" "},null,null,null,null,null,null,null,null,null,null,null,null,null,null,null,null,null,null,null,null,7,{"$f":"+IF(+Y51=0,\"El trabajador independiente no realiza tareas que tengan materiales con sílice \",+IF(+Y58=0,\"El trabajador independiente realiza tareas con materiales que tienen sílice, pero no se expone porque en éstas no existe emisión de polvo .\", +IF(+Z62=1,X70,X71)))","v":"El trabajador independiente no realiza tareas que tengan materiales con sílice "}]
[null,null,null,null,null,null,null,null,null,null,null,null,null,null,null,null,null,null,null,null,null,null,8,{"$f":"+IF(+X33=+X35,+X75,+IF(+X33=+X36,\"Este centro de trabajo  actualmente no está vigente en ACHS.\",IF(+X33=+X37,\"En este centro de trabajo existe el agente sílice, pero no existe emisión de polvo, porque  la faena esta terminada,  y por lo tanto no hay exposición de los trabajadores.\",\" \")))","v":" "}]
[]
[null,null,null,{"$f":"+F15&\" \"&F16&\" \"&F17","v":"VERÓNICA MELLADO FUENTES"},null,null,null,null,null,null,null,null,null,null,null,null,null,null,null,null,null,null,null,{"$f":"+B66","v":"En el centro de trabajo se utiliza Piretroides. Los trabajadores expuestos serán ingresados a Programas de Vigilancia Ambiental y de Salud, según corresponda.\n\n"}]
[null,null,null,"EXPERTO EN PREVENCIÓN DE RIESGOS",null,null,null,null,null,"Nombre Experto",null,null,null,null,null,null,null,null,null,null,null,null,null,{"$f":"+IF(X78=X66,1,IF(X78=X67,1,IF(X78=X70,1,IF(X78=X71,1,0))))","v":0}]
[null,null,null,null,null,null,null,null,"TEMUCO"]
[null,null,null,null,null,null,null,null,"ASOCIACIÓN CHILENA DE SEGURIDAD"]

{"sheet":"Logica IP","index":2,"n_rows":26,"n_cols":13,"rows_kept":26,"cut":false,"hidden":true,"merged":[]}
[null,"Plaguicidas",null,null,null,"Procesos",null,null,null,"¿Tiene Cámaras?",null,null,"Necesita Examen egreso"]
[null,false,false,false,null,true,false,false,null,false,true,null,2]
[null,false,true,false,null,false,true,false,null,"SI","NO"]
[null,false,false,false,null,false,false,false]
[]
[1,"¿Usa Plaguicida?",null,{"$f":"+IF(D4=TRUE,\"NO\",\"SI\")","v":"SI"}]
[2,"¿Tiene Expuestos?",null,{"$f":"+IF(H2=TRUE,\"NO\",\"SI\")","v":"SI"}]
[3,"Plaguicidas utilizados",null,{"$f":"+IF(B2=TRUE,\"Cumarinicos\",\"\")","v":""},{"$f":"+IF(C2=TRUE,\"Organofosforados\",\"\")","v":""},{"$f":"+IF(D2=TRUE,\"Bromuro de Metilo\",\"\")","v":""},{"$f":"+IF(B3=TRUE,\"Carbamatos\",\"\")","v":""},{"$f":"+IF(C3=TRUE,\"Piretroides\",\"\")","v":"Piretroides"},{"$f":"+IF(IDENTIFICACION!S48=0,\"\",IDENTIFICACION!S48)","v":""},{"$f":"+IF(B4=TRUE,\"Plaguicida SO2\",\"\")","v":""},{"$f":"+IF(C4=TRUE,\"Inorganicos (Cr, As)\",\"\")","v":""}]
["Caso -2","FALTA INGRESAR NOMBRE DEL PLAGUICIDA"]
["caso - 1","FALTA INGRESAR PLAGUICIDA",null,null,{"$f":"+IF(OR(B2:D4)=FALSE,\"SI\",\"NO\")","v":"NO"}]
["Caso 0","FALTA INGRESAR PROCESO",null,null,{"$f":"+IF(OR(F2:H4)=FALSE,\"SI\",\"NO\")","v":"NO"}]
["Caso 1","En este centro de trabajo o faena no se utilizan plaguicidas."]
["Caso 2","En el centro existen plaguicidas, pero su manejo no implica la exposición de los trabajadores a éstos; luego no es necesarios tener trabajadores en Programas de Vigilancia."]
["Caso 3",{"$f":"+B15&D22&B16","v":"En el centro de trabajo se utiliza Piretroides. Los trabajadores expuestos serán ingresados a Programas de Vigilancia Ambiental y de Salud, según corresponda."}]
[null,{"$f":"+IF(D20=1,\"En el centro de trabajo se utiliza \",IF(D20>1,\"En el centro de trabajo se utilizan \",\"\"))","v":"En el centro de trabajo se utiliza "}]
[null,". Los trabajadores expuestos serán ingresados a Programas de Vigilancia Ambiental y de Salud, según corresponda."]
[null,"En el centro de trabajo existen cámaras de fumigación dado lo cual, además de los programas de vigilancia que corresponda aplicar, es necesario que al inicio de cada temporada se informe a la SEREMI de Salud."]
[null,"El centro de trabajo tiene personal que debe retirar del programa de vigilancia de salud, para lo cual debe ponerse en contacto con ACHS."]
[]
["Numero de Plaguicidas",null,null,{"$f":"8-COUNTIF(D8:K8,\"\")","v":1}]
["PlaguIcidas",null,null,{"$f":"+IF(D8<>\"\",D8&\" - \",\"\")&IF(E8<>\"\",E8&\" - \",\"\")&IF(F8<>\"\",F8&\" - \",\"\")&IF(G8<>\"\",G8&\" - \",\"\")&IF(H8<>\"\",H8&\" - \",\"\")&IF(I8<>\"\",I8&\" - \",\"\")&IF(J8<>\"\",J8&\" - \",\"\")&IF(K8<>\"\",K8&\" - \",\"\")","v":"Piretroides - "}]
[null,null,null,{"$f":"+IF(D20>0,LEFT(D21,LEN(D21)-3),\"\")","v":"Piretroides"}]
["PARRAFO 1",{"$f":"+IF(E10=\"SI\",B10,IF(E11=\"SI\",B11,IF(D6=\"NO\",B12,IF(D7=\"NO\",B13,B14))))","v":"En el centro de trabajo se utiliza Piretroides. Los trabajadores expuestos serán ingresados a Programas de Vigilancia Ambiental y de Salud, según corresponda."}]
["PARRAFO 2",{"$f":"+IF(J2=TRUE,B17,\"\")","v":""}]
["PARRAFO 3",{"$f":"+IF(M2=1,B18,\"\")","v":""}]
["PARRAFO FINAL",{"$f":"+B23&CHAR(10)&B24&CHAR(10)&B25","v":"En el centro de trabajo se utiliza Piretroides. Los trabajadores expuestos serán ingresados a Programas de Vigilancia Ambiental y de Salud, según corresponda.\n\n"}]

{"sheet":"CopiaReco","index":3,"n_rows":11,"n_cols":5,"rows_kept":11,"cut":false,"hidden":true,"merged":[]}
[]
[]
[]
[]
[]
[null,1,"Existencia de autorización de la SEREMI Salud correspondiente si realiza tratamiento de residuos en el Establecimiento, y/o Empresa autorizada para traslado y disposición final."," 1 mes ","Verificar Resolución de autorización."]
[null,2,"Existencia de cuantificación de residuos peligrosos de la Empresa, considerando los citotóxicos."," 1 mes ","Verificar en terreno"]
[null,3,"Existencia de procedimiento de manejo seguro en caso de accidentes o derrames por citostáticos en conocimiento de los trabajadores."," 6 meses","Verificar en terreno."]
[null,4,"Existencia de disposición final intracentro, con la autorización sanitaria correspondiente y sus registros."," 3 meses","Verificar en terreno"]
[null,5,"Existencia de calzado cerrado antideslizante, impermeable (bota media caña)."," 1 mes ","Verificar en terreno"]
[null,6,"Existencia de pechera plástica."," 1 mes ","Verificar en terreno"]

{"sheet":"LISTA DE VERIFICACION","index":4,"n_rows":82,"n_cols":11,"rows_kept":82,"cut":false,"hidden":false,"merged":[[20,5,20,6],[21,5,21,6],[22,5,22,6],[28,5,28,6],[36,1,37,7],[43,3,44,7],[38,3,38,4],[43,1,44,2],[34,1,35,7],[71,5,71,7],[57,5,57,7],[49,5,49,7],[50,5,50,7],[51,5,51,7],[52,5,52,7],[53,5,53,7],[54,5,54,7],[72,5,72,7],[74,5,74,7],[58,5,58,7],[59,5,59,7],[60,5,60,7],[68,5,68,7],[70,5,70,7],[61,5,61,7],[62,5,62,7],[66,5,66,7],[67,5,67,7],[64,5,64,7],[65,5,65,7],[73,5,73,7],[69,5,69,7],[63,5,63,7],[14,8,14,10],[15,8,15,10],[9,8,9,10],[3,6,5,7],[6,6,6,7],[7,1,8,7],[11,5,11,7],[12,5,12,7],[13,5,13,7],[14,3,14,7],[10,5,10,7],[15,5,15,7],[3,2,4,5],[9,3,9,4],[16,1,17,7],[18,5,18,6],[19,5,19,6],[55,5,55,7],[56,5,56,7],[23,5,23,6],[24,5,24,6],[25,5,25,6],[26,5,26,6],[27,5,27,6],[45,5,45,7],[46,5,46,7],[47,5,47,7],[48,5,48,7],[31,1,32,7],[33,1,33,7]]}
[]
[]
[]
[null,null,"LISTA DE CHEQUEO: MANEJO DE RESIDUOS CON SUSTANCIAS CITOSTÁTICAS.",null,null,null,"EMPRESA"]
[]
[]
[null,null,null,null,null,"Fecha Evaluación:","2023-06-01"]
[null,"AUTO  EVALUACION CONTROL DEL RIESGO DE EXPOSICIÓN A CITOSTATICOS EN MANEJO RESIDUOS"]
[]
[null,null,"Razón Social Empresa: ","Servicio de Salud Coquimbo - H. de La Serena",null,"Tipo Empresa","1. Principal",null,"Organofosforados"]
[null,null,"Rut Empresa: ","77870923-3","BP Centro ",2000177094,null,null,"Carbamatos"]
[null,null,"Nombre Encargado Manejo Residuos  :","Luis Alucema ","Profesión:","Gestión ambiental ",null,null,"Piretroides"]
[null,null,"Fono/Fax Encargado Encargado Residuos:",null,"Mail:","Luis.alucema@redsalud.gov.cl",null,null,"Cumarinicos"]
[null,null,"Nombre Responsable Información:","Luis Alucema ","Cargo:","Experto Empresa",null,null,"Bromuro de Metilo"]
[null,null,"Dirección del Centro de Trabajo:","AV. Balmaceda # 916",null,null,null,null,"Plaguicida SO2"]
[null,null,"Nombre Experto ACHS:","Nicole Gallardo ","Agencia:","Elqui",null,null,"Otro"]
[null,"TABLA N° 2: Distribución de los trabajadores que manejan residuos con sustancias citostáticas","Tabla N° 4: Distribución de los trabajadores en la sala de administración de citostaticos"]
[]
[null,"RUT","Nombre","Lugar de Trabajo","H o M","Horas/Semana"]
[]
[]
[]
[]
[]
[]
[]
[]
[]
[]
[]
[]
[null,"OBJETIVO"]
[]
[null,"Establecer las acciones a realizar por la Empresa para dar cumplimiento al Protocolo de Vigilancia de trabajadores expuestos a citostáticos."]
[null,"ALCANCE"]
[]
[null,"Lista de evaluación para determinar el nivel de cumplimiento condiciones mínimas de control de la exposición a citostáticos en áreas destinadas al manejo de residuos."]
[]
[null,null,null,"CRITICIDAD DEL REQUISITO    ",null,null,null,null,"SI"]
[null,null,null,"Alta",null,null,null,null,"NO"]
[null,null,null,"Media",null,null,null,null,"NA"]
[null,null,null,"Baja"]
[]
[null,"REQUISITOS",null,"SELECCIONE SU RESPUESTA EN EL RECUADRO \"CUMPLE\""]
[]
[null,"K","GENERALES"," EVIDENCIA CUMPLIMIENTO","CUMPLE SI/NO","RECOMENDACIÓN / ACCIÓN A SEGUIR"]
[null,1,"Existencia de autorización de la SEREMI Salud correspondiente si realiza tratamiento de residuos en el Establecimiento, y/o Empresa autorizada para traslado y disposición final.","Verificar Resolución de autorización.","NO",{"$f":"+IF(E47=\"NO\",I47,\"\")","v":"Tramitar la autorización de la SEREMI Salud correspondiente si realiza tratamiento de residuos en el Establecimiento, y/o Empresa autorizada para traslado y disposición final."},null,null,"Tramitar la autorización de la SEREMI Salud correspondiente si realiza tratamiento de residuos en el Establecimiento, y/o Empresa autorizada para traslado y disposición final.",1]
[null,2,"Existencia de cuantificación de residuos peligrosos de la Empresa, considerando los citotóxicos.","Verificar en terreno","NO","Mantener inventario con cuantificación de residuos peligrosos de la Empresa, considerando los citotóxicos.",null,null,"Mantener inventario con cuantificación de residuos peligrosos de la Empresa, considerando los citotóxicos.",1]
[null,3,"Existencia de Plan de Manejo de Residuos cuando corresponda, presentado y aprobado por la Autoridad Sanitaria (Art. 25° D.S. 148/03)","Verificar en terreno","NA","",null,null,"Elaborar Plan de Manejo de Residuos cuando corresponda, presentado y aprobado por la Autoridad Sanitaria (Art. 25° D.S. 148/03)",2]
[null,4,"Existencia de segregación y separación de los residuos que contengan sustancias citostáticas. Deben estar separados de los demás generados en las diferentes áreas y prohibida su mezcla.(Art. 7° DS 148/2003)","Verificar en terreno.","SI","",null,null,"Realizar segregación y separación de los residuos que contengan sustancias citostáticas. Deben estar separados de los demás generados en las diferentes áreas y prohibida su mezcla.(Art. 7° DS 148/2003)",2]
[null,5,"Existencia de contenedores utilizados para residuos citostáticos con un espesor adecuado construidos con materiales resistentes, en buenas condiciones, a prueba de filtraciones y volcamientos. (Art. 8° DS 148/2003)","Verificar en terreno.","SI","",null,null,"Habilitar contenedores para residuos citostáticos con un espesor adecuado construidos con materiales resistentes, en buenas condiciones, a prueba de filtraciones y volcamientos. (Art. 8° DS 148/2003)",2]
[null,6,"Existencia de rotulación en los contenedores en forma claramente visible, las característica de citostáticos según la NCh2190 of 93, con pictograma “CITOTÖXICO”, lugar de procedencia, código de identificación, y la fecha de su ubicación en el sitio de almacenamiento. (Art. 8° DS 148/2003).","Verificar en terreno.","SI","",null,null,"Colocar rotulación en los contenedores en forma claramente visible, las característica de citostáticos según la NCh2190 of 93, con pictograma “CITOTÖXICO”, lugar de procedencia, código de identificación, y la fecha de su ubicación en el sitio de almacenamiento. (Art. 8° DS 148/2003).",1]
[null,{"$f":"+B52+1","v":7},"Existencia de bolsas de color rojo, con espesor de 120 mm o más, en cantidad suficiente para la reposición según el número de contenedores.","Verificar en terreno.","SI","",null,null,"Disponer bolsas de color rojo, con espesor de 120 ™m o más, en cantidad suficiente para la reposición según el número de contenedores.",2]
[null,{"$f":"+B53+1","v":8},"Existencia de lugar de acopio temporal (transitorio), señalizado, acceso restringido, designación de responsable.","Verificar en terreno.","SI",{"$f":"+IF(E54=\"NO\",I54,\"\")","v":""},null,null,"Habilitar un lugar de acopio temporal (transitorio), señalizado, acceso restringido, designación de responsable.",2,"cronograma"]
[null,"L","PROCEDIMIENTOS E INSTRUCTIVOS"," EVIDENCIA CUMPLIMIENTO","CUMPLE SI/NO","RECOMENDACIÓN / ACCIÓN A SEGUIR"]
[null,{"$f":"+B54+1","v":9},"Existencia de instructivo y advertencia visible en el área de manejo de desechos y residuos contaminados de no comer, beber líquidos, masticar chicle, o fumar en el lugar de trabajo.","Chequear en terreno y verificar instructivo.\n","SI","",null,null,"Elaborar instructivo y colocar advertencia visible en el área de manejo de desechos y residuos contaminados, que indique no comer, beber líquidos, masticar chicle, o fumar en el lugar de trabajo.",3]
[null,{"$f":"+B56+1","v":10},"Existencia de procedimiento de trabajo seguro sobre el manejo de los residuos generados que incluya disposición y eliminación final.","Chequear en terreno y verificar instructivo.\n","NA","",null,null,"Elaborar procedimiento de trabajo seguro sobre el manejo de los residuos generados que incluya disposición y eliminación final.",3]
[null,11,"Existencia de procedimiento de manejo seguro en caso de accidentes o derrames por citostáticos en conocimiento de los trabajadores.","Verificar en terreno.","NO","Elaborar procedimiento de manejo seguro en caso de accidentes o derrames por citostáticos en conocimiento de los trabajadores.",null,null,"Elaborar procedimiento de manejo seguro en caso de accidentes o derrames por citostáticos en conocimiento de los trabajadores.",3]
[null,"N","LUGAR DE ACOPIO FINAL O INTRACENTRO ( para retiro de empresas autorizadas por la autoridad sanitaria)"," EVIDENCIA CUMPLIMIENTO","CUMPLE SI/NO","RECOMENDACIÓN / ACCIÓN A SEGUIR"]
[null,{"$f":"+B58+1","v":12},"Existencia de lavamanos del tipo “manos libres” en el sitio de almacenamiento de residuos de citotóxicos con insumos para el lavado, secado de manos y contenedor para disposición de los guantes utilizados para el traslado como residuos peligrosos.","Chequear en terreno","SI","",null,null,"Instalar lavamanos del tipo “manos libres” en el sitio de almacenamiento de residuos de citotóxicos con insumos para el lavado, secado de manos y contenedor para disposición de los guantes utilizados para el traslado como residuos peligrosos.",2]
[null,13,"Existencia de sitios para el almacenamiento de los residuos peligrosos que incluyan los “citostáticos” con un cierre perimetral de a lo menos 1,8 metros de la altura que impida el libre acceso a personas y animales y protegidos de las condiciones ambientales tales como la humedad, temperatura y radiación solar.","Chequear en terreno","SI","",null,null,"Habilitar sitios para el almacenamiento de los residuos peligrosos que incluyan los “citostáticos” con un cierre perimetral de a lo menos 1,8 metros de la altura que impida el libre acceso a personas y animales y protegidos de las condiciones ambientales tales como la humedad, temperatura y radiación solar.",3]
[null,14,"Existencia de ruta de retiro de los residuos citotóxicos alejado de la circulación del público y pacientes, en horario diario.","Verificar en terreno","SI","",null,null,"Habilitar ruta de retiro de los residuos citotóxicos alejado de la circulación del público y pacientes, en horario diario.",3]
[null,15,"Existencia de sitios para el almacenamiento de los residuos peligrosos “citostáticos que garanticen que se minimice la volatilización, el arrastre o la lixiviación y en general cualquier otro mecanismo de contaminación del medio ambiente que puede afectar a la población.","Verificar en terreno","NA",{"$f":"+IF(E63=\"NO\",I63,\"\")","v":""},null,null,"Habilitar sitios para el almacenamiento de los residuos peligrosos “citostáticos que garanticen que se minimice la volatilización, el arrastre o la lixiviación y en general cualquier otro mecanismo de contaminación del medio ambiente que puede afectar a la población.",2]
[null,16,"Existencia de sitios para el almacenamiento de los residuos peligrosos, con señalización de acuerdo a la NCh 2190 of.93, acceso restringido, con responsable de la instalación, con cierre (llave).","Verificar en terreno","SI",{"$f":"+IF(E64=\"NO\",I64,\"\")","v":""},null,null,"Habilitar sitios para el almacenamiento de los residuos peligrosos, con señalización de acuerdo a la NCh 2190 of.93, acceso restringido, con responsable de la instalación, con cierre (llave).",2]
[null,17,"Existencia de registro de los residuos citotóxicos con fecha, hora y encargado del retiro de las áreas de acopio temporal y final del Establecimiento por la Empresa Externa autorizada por la SEREMI.","Verificar en terreno","NA",{"$f":"+IF(E65=\"NO\",I65,\"\")","v":""},null,null,"Mantener planilla de  registro de los residuos citotóxicos con fecha, hora y encargado del retiro de las áreas de acopio temporal y final del Establecimiento por la Empresa Externa autorizada por la SEREMI.",2]
[null,18,"Existencia de disposición final intracentro, con la autorización sanitaria correspondiente y sus registros.","Verificar en terreno","NO","Tramitar autorización sanitaria correspondiente y sus registros para la disposición final intracentro. ",null,null,"Tramitar autorización sanitaria correspondiente y sus registros para la disposición final intracentro. ",2]
[null,"O","CAPACITACIÓN Y COMPETENCIAS"," EVIDENCIA CUMPLIMIENTO","CUMPLE SI/NO","RECOMENDACIÓN / ACCIÓN A SEGUIR"]
[null,{"$f":"+B66+1","v":19},"Existencia de encargado del manejo de residuos peligrosos en el Establecimiento.","Verificar en terreno","NA",{"$f":"+IF(E68=\"NO\",I68,\"\")","v":""},null,null,"Nombrar encargado del manejo de residuos peligrosos en el Establecimiento.",1]
[null,{"$f":"+B68+1","v":20},"Existencia de capacitaciones a los trabajadores y trabajadoras según el Anexo N°4.","Chequear registro de las capacitaciones, contenidos, número de horas.","SI","",null,null,"Realizar capacitaciones a los trabajadores y trabajadoras según el Anexo N°4 del Protocolo.",1]
[null,"P","ELEMENTOS DE PROTECCIÓN PERSONAL E INDUMENTARIA DE TRABAJO"," EVIDENCIA CUMPLIMIENTO","CUMPLE SI/NO","RECOMENDACIÓN / ACCIÓN A SEGUIR"]
[null,{"$f":"+B69+1","v":21},"Existencia de ropa de circulación, confeccionado de material que no desprenda partículas entregada por el empleador.","Verificar en terreno","SI","",null,null,"Entregar al personal ropa de circulación, confeccionado de material que no desprenda partículas.",1]
[null,{"$f":"+B71+1","v":22},"Existencia de calzado cerrado antideslizante, impermeable (bota media caña).","Verificar en terreno","NO","Entregar al personal calzado cerrado antideslizante, impermeable (bota media caña).",null,null,"Entregar al personal calzado cerrado antideslizante, impermeable (bota media caña).",1]
[null,{"$f":"+B72+1","v":23},"Existencia de guantes resistentes a la abrasión y cortes de neopreno, nitrilo, o equivalente y multiuso.","Verificar en terreno","NA","",null,null,"Entregar al persona guantes resistentes a la abrasión y cortes de neopreno, nitrilo, o equivalente y multiuso.",1]
[null,24,"Existencia de pechera plástica.","Verificar en terreno","NO",{"$f":"+IF(E74=\"NO\",I74,\"\")","v":"Entregar al personal pechera plástica."},null,null,"Entregar al personal pechera plástica.",1]
[null,25,"Existencia de mascara filtrante tipo P3 o P 100, o\nequivalente desechable.","Verificar en terreno","SI","",null,null,"Entregar al personal mascara filtrante tipo P3 o P 100, o\nequivalente desechable.",1]
[]
[null,null,null,"NO se cumplen",{"$f":"+COUNTIF(E47:E75,\"NO\")","v":6},{"$f":"+E77/(E80-E79)","v":0.31578947368421051}]
[null,null,null,"SI se cumplen",{"$f":"+COUNTIF(E47:E75,\"SI\")","v":13},{"$f":"+E78/(E80-E79)","v":0.68421052631578949}]
[null,null,null,"NO Aplican",{"$f":"+COUNTIF(E47:E75,\"NA\")","v":6}]
[null,null,null,"Total",{"$f":"+SUM(E77:E79)","v":25}]
[]
[null,null,"Nombre Responsable Empresa:","Firma:","Fecha:"]

{"sheet":"CopiaLV","index":5,"n_rows":34,"n_cols":3,"rows_kept":34,"cut":false,"hidden":true,"merged":[[1,0,1,2],[2,0,3,1]]}
[]
["LISTA DE VERIFICACION"]
["REQUISITOS"]
[]
["K","GENERALES","CUMPLE SI/NO"]
[1,"Existencia de autorización de la SEREMI Salud correspondiente si realiza tratamiento de residuos en el Establecimiento, y/o Empresa autorizada para traslado y disposición final.","NO"]
[2,"Existencia de cuantificación de residuos peligrosos de la Empresa, considerando los citotóxicos.","NO"]
[3,"Existencia de Plan de Manejo de Residuos cuando corresponda, presentado y aprobado por la Autoridad Sanitaria (Art. 25° D.S. 148/03)","NA"]
[4,"Existencia de segregación y separación de los residuos que contengan sustancias citostáticas. Deben estar separados de los demás generados en las diferentes áreas y prohibida su mezcla.(Art. 7° DS 148/2003)","SI"]
[5,"Existencia de contenedores utilizados para residuos citostáticos con un espesor adecuado construidos con materiales resistentes, en buenas condiciones, a prueba de filtraciones y volcamientos. (Art. 8° DS 148/2003)","SI"]
[6,"Existencia de rotulación en los contenedores en forma claramente visible, las característica de citostáticos según la NCh2190 of 93, con pictograma “CITOTÖXICO”, lugar de procedencia, código de identificación, y la fecha de su ubicación en el sitio de almacenamiento. (Art. 8° DS 148/2003).","SI"]
[7,"Existencia de bolsas de color rojo, con espesor de 120 mm o más, en cantidad suficiente para la reposición según el número de contenedores.","SI"]
[8,"Existencia de lugar de acopio temporal (transitorio), señalizado, acceso restringido, designación de responsable.","SI"]
["L","PROCEDIMIENTOS E INSTRUCTIVOS","CUMPLE SI/NO"]
[9,"Existencia de instructivo y advertencia visible en el área de manejo de desechos y residuos contaminados de no comer, beber líquidos, masticar chicle, o fumar en el lugar de trabajo.","SI"]
[10,"Existencia de procedimiento de trabajo seguro sobre el manejo de los residuos generados que incluya disposición y eliminación final.","NA"]
[11,"Existencia de procedimiento de manejo seguro en caso de accidentes o derrames por citostáticos en conocimiento de los trabajadores.","NO"]
["N","LUGAR DE ACOPIO FINAL O INTRACENTRO ( para retiro de empresas autorizadas por la autoridad sanitaria)","CUMPLE SI/NO"]
[12,"Existencia de lavamanos del tipo “manos libres” en el sitio de almacenamiento de residuos de citotóxicos con insumos para el lavado, secado de manos y contenedor para disposición de los guantes utilizados para el traslado como residuos peligrosos.","SI"]
[13,"Existencia de sitios para el almacenamiento de los residuos peligrosos que incluyan los “citostáticos” con un cierre perimetral de a lo menos 1,8 metros de la altura que impida el libre acceso a personas y animales y protegidos de las condiciones ambientales tales como la humedad, temperatura y radiación solar.","SI"]
[14,"Existencia de ruta de retiro de los residuos citotóxicos alejado de la circulación del público y pacientes, en horario diario.","SI"]
[15,"Existencia de sitios para el almacenamiento de los residuos peligrosos “citostáticos que garanticen que se minimice la volatilización, el arrastre o la lixiviación y en general cualquier otro mecanismo de contaminación del medio ambiente que puede afectar a la población.","NA"]
[16,"Existencia de sitios para el almacenamiento de los residuos peligrosos, con señalización de acuerdo a la NCh 2190 of.93, acceso restringido, con responsable de la instalación, con cierre (llave).","SI"]
[17,"Existencia de registro de los residuos citotóxicos con fecha, hora y encargado del retiro de las áreas de acopio temporal y final del Establecimiento por la Empresa Externa autorizada por la SEREMI.","NA"]
[18,"Existencia de disposición final intracentro, con la autorización sanitaria correspondiente y sus registros.","NO"]
["O","CAPACITACIÓN Y COMPETENCIAS","SI"]
[19,"Existencia de encargado del manejo de residuos peligrosos en el Establecimiento.","NA"]
[20,"Existencia de capacitaciones a los trabajadores y trabajadoras según el Anexo N°4.","SI"]
["P","ELEMENTOS DE PROTECCIÓN PERSONAL E INDUMENTARIA DE TRABAJO","SI"]
[21,"Existencia de ropa de circulación, confeccionado de material que no desprenda partículas entregada por el empleador.","SI"]
[22,"Existencia de calzado cerrado antideslizante, impermeable (bota media caña).","NO"]
[23,"Existencia de guantes resistentes a la abrasión y cortes de neopreno, nitrilo, o equivalente y multiuso.","NA"]
[24,"Existencia de pechera plástica.","NO"]
[25,"Existencia de mascara filtrante tipo P3 o P 100, o\nequivalente desechable.","SI"]

{"sheet":"Grafico 2","index":6,"n_rows":4,"n_cols":6,"rows_kept":4,"cut":false,"hidden":true,"merged":[]}
[null,"% Cumplimiento","SI","NO","NA","Total sin NA"]
["ALTA",{"$f":"+C2/F2","v":0.5},4,4,2,{"$f":"+(C2+D2)","v":8}]
["MEDIA",{"$f":"+C3/F3","v":0.8571428571428571},6,1,3,{"$f":"+(C3+D3)","v":7}]
["BAJA",0.75,3,1,1,4]

{"sheet":"Recomendaciones","index":7,"n_rows":6,"n_cols":5,"rows_kept":6,"cut":false,"hidden":true,"merged":[]}
[null,"Existencia de autorización de la SEREMI Salud correspondiente si realiza tratamiento de residuos en el Establecimiento, y/o Empresa autorizada para traslado y disposición final."," 1 mes ",1,"Verificar Resolución de autorización."]
[null,"Existencia de cuantificación de residuos peligrosos de la Empresa, considerando los citotóxicos."," 1 mes ",1,"Verificar en terreno"]
[null,"Existencia de procedimiento de manejo seguro en caso de accidentes o derrames por citostáticos en conocimiento de los trabajadores."," 6 meses",null,"Verificar en terreno."]
[null,"Existencia de disposición final intracentro, con la autorización sanitaria correspondiente y sus registros."," 3 meses",2,"Verificar en terreno"]
[null,"Existencia de calzado cerrado antideslizante, impermeable (bota media caña)."," 1 mes ",1,"Verificar en terreno"]
[null,"Existencia de pechera plástica."," 1 mes ",1,"Verificar en terreno"]

{"sheet":"datos","index":8,"n_rows":22,"n_cols":22,"rows_kept":22,"cut":false,"hidden":true,"merged":[]}
["Nombre","BP Centro Trabajo","Rut_Empleador","Digito","Direccion_CT","Numero_CT","Comuna CT","Experto ACHS","Agencia","Fecha Visita","Noaplica","Nocumple","Sicumple","NivelRiesgo","Nombre Jefe","Cargo","Plaguicida Principal","Raesultado Vigilancia Salud","¿Vigilancia Salud?","Alternativa 1 Salud","Alternativa 2 salud","Tipo Empresa"]
[{"$f":"+'LISTA DE VERIFICACION'!D10","v":"Servicio de Salud Coquimbo - H. de La Serena"},{"$f":"+'LISTA DE VERIFICACION'!F11","v":2000177094},{"$f":"+LEFT(+'LISTA DE VERIFICACION'!D11,LEN(+'LISTA DE VERIFICACION'!D11)-2)","v":"77870923"},{"$f":"+RIGHT(+'LISTA DE VERIFICACION'!D11,1)","v":"3"},{"$f":"+'LISTA DE VERIFICACION'!D15","v":"AV. Balmaceda # 916"},null,null,{"$f":"+'LISTA DE VERIFICACION'!D16","v":"Nicole Gallardo "},{"$f":"+'LISTA DE VERIFICACION'!F16","v":"Elqui"},{"$f":"+'LISTA DE VERIFICACION'!G7","v":"2023-06-01"},6,6,13,null,{"$f":"+'LISTA DE VERIFICACION'!D14","v":"Luis Alucema "},{"$f":"+'LISTA DE VERIFICACION'!F14","v":"Experto Empresa"},null,null,null,null,null,{"$f":"IF('LISTA DE VERIFICACION'!G10=\"1. Principal\",1,2)","v":1}]
[]
[1,{"$f":"+A4+1","v":2},{"$f":"+B4+1","v":3},4,5,{"$f":"+E4+1","v":6},7,8,9,10,11,12,13,14,15,16,17,18,19,20,21,22]
[]
[]
[]
[]
[]
[]
[]
[]
[]
[]
[]
[]
[]
[]
[]
[]
[]
[null,"Carbamatos"]

{"sheet":"NO Aplica","index":9,"n_rows":7,"n_cols":2,"rows_kept":7,"cut":false,"hidden":true,"merged":[]}
[null,"MEDIDA QUE NO APLICA"]
[null,"Existencia de Plan de Manejo de Residuos cuando corresponda, presentado y aprobado por la Autoridad Sanitaria (Art. 25° D.S. 148/03)"]
[null,"Existencia de procedimiento de trabajo seguro sobre el manejo de los residuos generados que incluya disposición y eliminación final."]
[null,"Existencia de sitios para el almacenamiento de los residuos peligrosos “citostáticos que garanticen que se minimice la volatilización, el arrastre o la lixiviación y en general cualquier otro mecanismo de contaminación del medio ambiente que puede afectar a la población."]
[null,"Existencia de registro de los residuos citotóxicos con fecha, hora y encargado del retiro de las áreas de acopio temporal y final del Establecimiento por la Empresa Externa autorizada por la SEREMI."]
[null,"Existencia de encargado del manejo de residuos peligrosos en el Establecimiento."]
[null,"Existencia de guantes resistentes a la abrasión y cortes de neopreno, nitrilo, o equivalente y multiuso."]

{"sheet":"Grafico","index":10,"n_rows":21,"n_cols":12,"rows_kept":21,"cut":false,"hidden":true,"merged":[[0,8,0,10]]}
[null,null,null,null,null,null,null,null,"Total de Respuestas NO por Color"]
[null,"Condiciones Verificadas"," N° Resp. Si","N° Resp. No","N° Resp. NC","Total","  % Cumplimiento"," Total sin NC",1,2,3,"Total"]
[null,"A. Generales",5,2,1,8,{"$f":"IF(H3=0,\"NC\",+C3/H3)","v":0.7142857142857143},{"$f":"+F3-E3","v":7},2,0,0,{"$f":"+I3+J3+K3","v":2}]
[null,"B. Procedimientos",1,1,1,3,{"$f":"IF(H4=0,\"NC\",+C4/H4)","v":0.5},{"$f":"+F4-E4","v":2},0,0,1,{"$f":"+I4+J4+K4","v":1}]
[null,"C. Lugar final o intracentro",4,1,2,7,0.8,{"$f":"+F5-E5","v":5},0,1,0,1]
[null,"D. Capacitación y competencias",1,0,1,2,1,1,0,0,0,0]
[null,"E. Elementos de Protección Personal",2,2,1,5,0.5,4,2,0,0,2]
[null,null,null,null,null,null,null,null,null,null,null,0]
[]
[]
[]
[]
[null,null,null,null,null,null,null,null,null,null,null,0]
[null,"  Total",{"$f":"+SUM(C3:C13)","v":13},{"$f":"+SUM(D3:D13)","v":6},{"$f":"+SUM(E3:E13)","v":6},25,{"$f":"+C14/F14","v":0.52},{"$f":"+SUM(H3:H13)","v":19},{"$f":"+SUM(I3:I13)","v":4},{"$f":"+SUM(J3:J13)","v":1},{"$f":"+SUM(K3:K13)","v":1},6]
[]
[null,"Protección Personal",{"$f":"14+18+9","v":41},null,null,null,null,"Total Preg / clas ",10,10,5,{"$f":"+SUM(I16:K16)","v":25}]
[null,null,null,null,null,null,null,"Total clas 1 y NC",0,0,0]
[null,null,null,null,null,null,null,"% Cumplimiento",{"$f":"1-I14/(I16-I17)","v":0.6},{"$f":"1-J14/(J16-J17)","v":0.9},{"$f":"1-K14/K16","v":0.8},{"$f":"10/29","v":0.34482758620689657}]
[null,null,null,null,null,null,null,"Criticidad","Alta","Media ","Baja"]
[null,null,null,null,null,null,null,"Total de resp. NO",{"$f":"+D14","v":6}]
[null,null,null,null,null,null,null,"Evaluacion Riesgo",{"$f":"+IF(I18<1,\"Alto\",+IF(J18=1,\"Bajo\",\"Medio\"))","v":"Alto"}]

{"sheet":"Hoja1","index":11,"n_rows":348,"n_cols":2,"rows_kept":348,"cut":false,"hidden":true,"merged":[]}
["Nombre Comuna","Código Comuna 2010"]
["AISEN",11201]
["ALGARROBO","05602"]
["ALHUE",13502]
["ALTO BIOBIO","08314"]
["ALTO DEL CARMEN","03302"]
["ALTO HOSPICIO","01107"]
["ANCUD",10202]
["ANDACOLLO","04103"]
["ANGOL","09201"]
["ANTARTICA",12202]
["ANTOFAGASTA","02101"]
["ANTUCO","08302"]
["ARAUCO","08202"]
["ARICA",15101]
["BUIN",13402]
["BULNES","08402"]
["CABILDO","05402"]
["CABO DE HORNOS",12201]
["CABRERO","08303"]
["CALAMA","02201"]
["CALBUCO",10102]
["CALDERA","03102"]
["CALERA","05502"]
["CALERA DE TANGO",13403]
["CALLE LARGA","05302"]
["CAMARONES",15102]
["CAMIÑA","01402"]
["CANELA","04202"]
["CAÑETE","08203"]
["CARAHUE","09102"]
["CARTAGENA","05603"]
["CASABLANCA","05102"]
["CASTRO",10201]
["CATEMU","05702"]
["CAUQUENES","07201"]
["CERRILLOS",13102]
["CERRO NAVIA",13103]
["CHAITEN",10401]
["CHANCO","07202"]
["CHAÑARAL","03201"]
["CHEPICA","06302"]
["CHIGUAYANTE","08103"]
["CHILE CHICO",11401]
["CHILLAN","08401"]
["CHILLAN VIEJO","08406"]
["CHIMBARONGO","06303"]
["CHOLCHOL","09121"]
["CHONCHI",10203]
["CISNES",11202]
["COBQUECURA","08403"]
["COCHAMO",10103]
["COCHRANE",11301]
["CODEGUA","06102"]
["COELEMU","08404"]
["COIHAIQUE",11101]
["COIHUECO","08405"]
["COINCO","06103"]
["COLBUN","07402"]
["COLCHANE","01403"]
["COLINA",13301]
["COLLIPULLI","09202"]
["COLTAUCO","06104"]
["COMBARBALA","04302"]
["CONCEPCION","08101"]
["CONCHALI",13104]
["CONCON","05103"]
["CONSTITUCION","07102"]
["CONTULMO","08204"]
["COPIAPO","03101"]
["COQUIMBO","04102"]
["CORONEL","08102"]
["CORRAL",14102]
["CUNCO","09103"]
["CURACAUTIN","09203"]
["CURACAVI",13503]
["CURACO DE VELEZ",10204]
["CURANILAHUE","08205"]
["CURARREHUE","09104"]
["CUREPTO","07103"]
["CURICO","07301"]
["DALCAHUE",10205]
["DIEGO DE ALMAGRO","03202"]
["DOÑIHUE","06105"]
["EL BOSQUE",13105]
["EL CARMEN","08407"]
["EL MONTE",13602]
["EL QUISCO","05604"]
["EL TABO","05605"]
["EMPEDRADO","07104"]
["ERCILLA","09204"]
["ESTACION CENTRAL",13106]
["FLORIDA","08104"]
["FREIRE","09105"]
["FREIRINA","03303"]
["FRESIA",10104]
["FRUTILLAR",10105]
["FUTALEUFU",10402]
["FUTRONO",14202]
["GALVARINO","09106"]
["GENERAL LAGOS",15202]
["GORBEA","09107"]
["GRANEROS","06106"]
["GUAITECAS",11203]
["HIJUELAS","05503"]
["HUALAIHUE",10403]
["HUALAÑE","07302"]
["HUALPEN","08112"]
["HUALQUI","08105"]
["HUARA","01404"]
["HUASCO","03304"]
["HUECHURABA",13107]
["IGNORADA",99999]
["ILLAPEL","04201"]
["INDEPENDENCIA",13108]
["IQUIQUE","01101"]
["ISLA DE MAIPO",13603]
["ISLA  DE PASCUA","05201"]
["JUAN FERNANDEZ","05104"]
["LA CISTERNA",13109]
["LA CRUZ","05504"]
["LA ESTRELLA","06202"]
["LA FLORIDA",13110]
["LA GRANJA",13111]
["LA HIGUERA","04104"]
["LA LIGUA","05401"]
["LA PINTANA",13112]
["LA REINA",13113]
["LA SERENA","04101"]
["LA UNION",14201]
["LAGO RANCO",14203]
["LAGO VERDE",11102]
["LAGUNA BLANCA",12102]
["LAJA","08304"]
["LAMPA",13302]
["LANCO",14103]
["LAS CABRAS","06107"]
["LAS CONDES",13114]
["LAUTARO","09108"]
["LEBU","08201"]
["LICANTEN","07303"]
["LIMACHE","05802"]
["LINARES","07401"]
["LITUECHE","06203"]
["LLAILLAY","05703"]
["LLANQUIHUE",10107]
["LO BARNECHEA",13115]
["LO ESPEJO",13116]
["LO PRADO",13117]
["LOLOL","06304"]
["LONCOCHE","09109"]
["LONGAVI","07403"]
["LONQUIMAY","09205"]
["LOS ALAMOS","08206"]
["LOS ANDES","05301"]
["LOS ANGELES","08301"]
["LOS LAGOS",14104]
["LOS MUERMOS",10106]
["LOS SAUCES","09206"]
["LOS VILOS","04203"]
["LOTA","08106"]
["LUMACO","09207"]
["MACHALI","06108"]
["MACUL",13118]
["MAFIL",14105]
["MAIPU",13119]
["MALLOA","06109"]
["MARCHIHUE","06204"]
["MARIA ELENA","02302"]
["MARIA PINTO",13504]
["MARIQUINA",14106]
["MAULE","07105"]
["MAULLIN",10108]
["MEJILLONES","02102"]
["MELIPEUCO","09110"]
["MELIPILLA",13501]
["MOLINA","07304"]
["MONTE PATRIA","04303"]
["MOSTAZAL","06110"]
["MULCHEN","08305"]
["NACIMIENTO","08306"]
["NANCAGUA","06305"]
["NATALES",12401]
["NAVIDAD","06205"]
["NEGRETE","08307"]
["NINHUE","08408"]
["NOGALES","05506"]
["NUEVA IMPERIAL","09111"]
["ÑIQUEN","08409"]
["ÑUÑOA",13120]
["O'HIGGINS",11302]
["OLIVAR","06111"]
["OLLAGUE","02202"]
["OLMUE","05803"]
["OSORNO",10301]
["OVALLE","04301"]
["PADRE HURTADO",13604]
["PADRE LAS CASAS","09112"]
["PAIGUANO","04105"]
["PAILLACO",14107]
["PAINE",13404]
["PALENA",10404]
["PALMILLA","06306"]
["PANGUIPULLI",14108]
["PANQUEHUE","05704"]
["PAPUDO","05403"]
["PAREDONES","06206"]
["PARRAL","07404"]
["PEDRO AGUIRRE CERDA",13121]
["PELARCO","07106"]
["PELLUHUE","07203"]
["PEMUCO","08410"]
["PENCAHUE","07107"]
["PENCO","08107"]
["PEÑAFLOR",13605]
["PEÑALOLEN",13122]
["PERALILLO","06307"]
["PERQUENCO","09113"]
["PETORCA","05404"]
["PEUMO","06112"]
["PICA","01405"]
["PICHIDEGUA","06113"]
["PICHILEMU","06201"]
["PINTO","08411"]
["PIRQUE",13202]
["PITRUFQUEN","09114"]
["PLACILLA","06308"]
["PORTEZUELO","08412"]
["PORVENIR",12301]
["POZO ALMONTE","01401"]
["PRIMAVERA",12302]
["PROVIDENCIA",13123]
["PUCHUNCAVI","05105"]
["PUCON","09115"]
["PUDAHUEL",13124]
["PUENTE ALTO",13201]
["PUERTO MONTT",10101]
["PUERTO OCTAY",10302]
["PUERTO VARAS",10109]
["PUMANQUE","06309"]
["PUNITAQUI","04304"]
["PUNTA ARENAS",12101]
["PUQUELDON",10206]
["PUREN","09208"]
["PURRANQUE",10303]
["PUTAENDO","05705"]
["PUTRE",15201]
["PUYEHUE",10304]
["QUEILEN",10207]
["QUELLON",10208]
["QUEMCHI",10209]
["QUILACO","08308"]
["QUILICURA",13125]
["QUILLECO","08309"]
["QUILLON","08413"]
["QUILLOTA","05501"]
["QUILPUE","05801"]
["QUINCHAO",10210]
["QUINTA DE TILCOCO","06114"]
["QUINTA NORMAL",13126]
["QUINTERO","05107"]
["QUIRIHUE","08414"]
["RANCAGUA","06101"]
["RANQUIL","08415"]
["RAUCO","07305"]
["RECOLETA",13127]
["RENAICO","09209"]
["RENCA",13128]
["RENGO","06115"]
["REQUINOA","06116"]
["RETIRO","07405"]
["RINCONADA","05303"]
["RIO BUENO",14204]
["RÍO CLARO","07108"]
["RIO HURTADO","04305"]
["RÍO IBAÑEZ",11402]
["RIO NEGRO",10305]
["RIO VERDE",12103]
["ROMERAL","07306"]
["SAAVEDRA","09116"]
["SAGRADA FAMILIA","07307"]
["SALAMANCA","04204"]
["SAN ANTONIO","05601"]
["SAN BERNARDO",13401]
["SAN CARLOS","08416"]
["SAN CLEMENTE","07109"]
["SAN ESTEBAN","05304"]
["SAN FABIAN","08417"]
["SAN FELIPE","05701"]
["SAN FERNANDO","06301"]
["SAN GREGORIO",12104]
["SAN IGNACIO","08418"]
["SAN JAVIER","07406"]
["SAN JOAQUIN",13129]
["SAN JOSE DE MAIPO",13203]
["SAN JUAN DE LA COSTA",10306]
["SAN MIGUEL",13130]
["SAN NICOLAS","08419"]
["SAN PABLO",10307]
["SAN PEDRO",13505]
["SAN PEDRO DE ATACAMA","02203"]
["SAN PEDRO DE LA PAZ","08108"]
["SAN RAFAEL","07110"]
["SAN RAMON",13131]
["SAN ROSENDO","08310"]
["SAN VICENTE","06117"]
["SANTA BARBARA","08311"]
["SANTA CRUZ","06310"]
["SANTA JUANA","08109"]
["SANTA MARIA","05706"]
["SANTIAGO",13101]
["SANTO DOMINGO","05606"]
["SIERRA GORDA","02103"]
["TALAGANTE",13601]
["TALCA","07101"]
["TALCAHUANO","08110"]
["TALTAL","02104"]
["TEMUCO","09101"]
["TENO","07308"]
["TEODORO SCHMIDT","09117"]
["TIERRA AMARILLA","03103"]
["TILTIL",13303]
["TIMAUKEL",12303]
["TIRUA","08207"]
["TOCOPILLA","02301"]
["TOLTEN","09118"]
["TOME","08111"]
["TORRES DEL PAINE",12402]
["TORTEL",11303]
["TRAIGUEN","09210"]
["TREGUACO","08420"]
["TUCAPEL","08312"]
["VALDIVIA",14101]
["VALLENAR","03301"]
["VALPARAISO","05101"]
["VICHUQUEN","07309"]
["VICTORIA","09211"]
["VICUÑA","04106"]
["VILCUN","09119"]
["VILLA ALEGRE","07407"]
["VILLA ALEMANA","05804"]
["VILLARRICA","09120"]
["VIÑA DEL MAR","05109"]
["VITACURA",13132]
["YERBAS BUENAS","07408"]
["YUMBEL","08313"]
["YUNGAY","08421"]
["ZAPALLAR","05405"]

{"sheet":"Doc_51","index":12,"n_rows":2,"n_cols":65,"rows_kept":2,"cut":false,"hidden":true,"merged":[]}
["CUV ","Codigo del OA Emisor","Fecha Emisión Documento Electrónico","Folio","Codigo Agente Riesgo","Tipo Documento","ID Documento","Tipo Documento Asociado","ID Documento Asociado","Rut Responsable","Apellido Paterno Responsable","Apellido Materno Responsable","Nombres  Responsable","Responsable Correo Profesional","Rut Empleador","Razon Social","Tipo Calle ","Nombre Calle","Numero","Resto Direccion","Localidad","Comuna","Codigo CIIU Empleador Evaluado","CIIU Texto o Giro Empleador evaluado","Carácter Organización","N° Total Trabajadores Propios","Numero Trabajadores Hombres","Numero Trabajadores Mujer","Reglamento de Higiene y Seguridad ","Reglamento de Higiene y Seguridad incorpora agente de riesgo ","Reglamento de Orden Higiene y Seguridad","Reglamento de Orden Higiene y Seguridad incorpora Agente de riesgo ","Depto. Prevencion Riesgos","Estado Centro Trabajo","Rut Empleador Principal\n","Nombre Empleador Principal","Correlativo Proyecto/contrato","Nombre Centro de Trabajo","Tipo Empresa ","X (Latitud)","Y (Longitud)","Tipo calle CT","Nombre calle CT","Numero CT","Resto direccion CT","Localidad CT","Comuna CT","Descripcion Actividad Centro Trabajo","N° Total Trabajadores CT","N° Trabajadores Hombres CT","N° Trabajadores Mujer CT","Comité Paritario Constituido","Experto Prevencion Riesgos","Experto Prevencion Riesgos-Horas Semana dedicacion al CT","Fecha Inicio Centro Trabajo","Centro de trabajo con fecha de cierre conocida","Fecha Término Centro Trabajo","Presencia peligro","Fecha Deteccion Peligro","Origen","BP Centro Trabajo","ID Documento","Causas Cierre","Motivo Cierre","Fecha Cierre"]
[null,11,null,null,6001010601,51,1,null,null,"16717064-1","LEANDRO","JARAMILLO","LORCA","LJARAMILLO@ACHS.CL","79547780-2","CARSOL FRUIT",3,"CAMINO A COHIHUECO","TIPO CALLE",null,"CHILLAN","08401",11321,null,2,16,12,4,3,2,1,1,1,2,"79547780-2","CARSOL FRUIT S.A.",null,"FUNDO LINDEROS",1,408874,731970,3,"ESTERO LARGO","KM 3",null,null,null,"PRODUCCIÓN DE BERRIES, HORTALIZAS Y OTROS FRUTALES",54,28,26,1,1,null,"2019-01-18",2,null,2,"2019-05-23",1,2000739344,2134213,5,null,{"$f":"BG2","v":"2019-05-23"}]